Workbook

Sheet MSU
B1: Jyrki Korhonen | E1: 7.9.1958
B2: SUPERPESIS | E2: Runkosarja | I2: Kärkilyönnit (KL), pesänvälit | P2: Runkosarja TOP-30 | U2: Ylempi loppusarja | AB2: Ylempi loppusarja TOP-10 | AG2: Play off, voitot, voittoprosentti | AL2: Arvo-ottelut | AO2: Mitalit
B3: Vuosi | C3: Sija | D3: Seura | E3: OTT | F3: KUN | G3: LÖI | H3: TOI | I3: KL | J3: 0 > 1 | K3: 1 > 2 | L3: 2 > 3 | M3: 3 > k | N3: KL-% | P3: LÖI | Q3: TOI | R3: L+T | S3: KL | U3: OTT | V3: KUN | W3: LÖI | X3: TOI | Y3: KL | Z3: KL-% | AB3: LÖI | AC3: TOI | AD3: L+T | AE3: KL | AG3: Puolivälierät | AH3: Välierät | AI3: Pronssi | AJ3: Finaalit | AL3: IL | AM3: LL | AN3: Cup | AO3: K | AP3: H | AQ3: P
B4: 1980 | C4: 7. | D4: SiiPo | E4: 22 | F4: 1 | G4: 10 | H4: 11 | I4: 97 | J4: 38 | K4: 23 | L4: 25 | M4: 11 | N4: 47.2 %
B5: 1981 | C5: 7. | D5: SiiPo | E5: 22 | F5: 3 | G5: 16 | H5: 11 | I5: 96 | J5: 31 | K5: 19 | L5: 27 | M5: 19 | N5: 51.3 % | P5: 23.
B6: 1982 | C6: 7. | D6: SiiPo | E6: 22 | F6: 1 | G6: 7 | H6: 12 | I6: 86 | J6: 25 | K6: 28 | L6: 25 | M6: 8 | N6: 53.1 %
B7: 1983 | C7: 8. | D7: SiiPo | E7: 21 | F7: 0 | G7: 6 | H7: 7 | I7: 70 | J7: 18 | K7: 26 | L7: 20 | M7: 6 | N7: 47.0 %
B8: 1984 | C8: 10. | D8: SiiPo | E8: 22 | F8: 0 | G8: 11 | H8: 17 | I8: 87 | J8: 21 | K8: 23 | L8: 32 | M8: 11 | N8: 50.6 %
B9: 1985 | C9: 1. | D9: SiiPo | F9: ykkössarja | AN9: 1
B10: 1986 | C10: 2. | D10: SiiPo | E10: 22 | F10: 1 | G10: 10 | H10: 16 | I10: 98 | J10: 19 | K10: 38 | L10: 30 | M10: 11 | N10: 59.8 % | U10: 6 | V10: 0 | W10: 4 | X10: 2 | Y10: 21 | Z10: 44.7 % | AG10: Loppusarja 2. | AJ10: 0-2 IPV | AP10: 1
B11: 1987 | C11: 6. | D11: SiiPo | E11: 22 | F11: 0 | G11: 9 | H11: 12 | I11: 98 | J11: 28 | K11: 35 | L11: 26 | M11: 9 | N11: 56.3 % | U11: 2 | V11: 0 | W11: 1 | X11: 1 | Y11: 7 | Z11: 43.8 % | AG11: 9-12 IPV | AL11: 1 | AM11: 1
B12: 1988 | C12: 10. | D12: SiiPe | E12: 22 | F12: 0 | G12: 10 | H12: 11 | I12: 96 | J12: 15 | K12: 38 | L12: 33 | M12: 10 | N12: 52.8 %
B13: 1989 | C13: 12. | D13: SiiPe | E13: 22 | F13: 0 | G13: 7 | H13: 11 | I13: 89 | J13: 18 | K13: 37 | L13: 27 | M13: 7 | N13: 58.6 %
B14: 1990 | C14: 8. | D14: SiiPe | E14: 6 | F14: 0 | G14: 3 | H14: 3 | I14: 22 | J14: 5 | K14: 6 | L14: 8 | M14: 3 | N14: 53.7 % | U14: 3 | V14: 0 | W14: 0 | X14: 0 | Y14: 6 | Z14: 37.5 %
B15: Yhteensä | E15: 203 | F15: 6 | G15: 89 | H15: 111 | I15: 839 | J15: 218 | K15: 273 | L15: 253 | M15: 95 | N15: 50.9 % | P15: 0-0-0 | Q15: 0-0-0 | R15: 0-0-0 | S15: 0-0-0 | U15: 11 | V15: 0 | W15: 5 | X15: 3 | Y15: 34 | Z15: 43.0 % | AB15: 0-0-0 | AC15: 0-0-0 | AD15: 0-0-0 | AE15: 0-0-0 | AG15: 0/1 | AH15: 0/0 | AI15: 0/0 | AJ15: 0/1 | AL15: 1 | AM15: 1 | AN15: 1 | AO15: 0 | AP15: 1 | AQ15: 0
AG16: 0.0 % | AH16: 0.0 % | AI16: 0.0 % | AJ16: 0.0 %
B17: Pesispörssi | D17: 606.7
B19: URA SUPERISSA | E19: OTT | F19: KUN | G19: LÖI | H19: TOI | I19: KL | K19: ka/L | L19: ka/T | M19: ka/KL | N19: KL-% | P19: ENSIMMÄISET RUNKOSARJASSA | AG19: ENSIMMÄISET PUDOTUSPELEISSÄ | AL19: YLEISÖ
B20: Runkosarja | E20: 203 | F20: 6 | G20: 89 | H20: 111 | I20: 839 | K20: 0.47 | L20: 0.55 | M20: 4.13 | N20: 50.9 % | P20: Ottelu | R20: 04.05. 1980 SiiPo - KaMa 6-2 | Y20: 1. ottelu | AC20: 21 v 7 kk 27 pv | AG20: Ottelu | AH20: 1. 13.08. 1986 SiiPo - SMJ 5-4 | AL20: 1742 | AN20: 27 v 11 kk 6 pv
B21: Ylempi loppusarja | E21: 11 | F21: 0 | G21: 5 | H21: 3 | I21: 34 | K21: 0.45 | L21: 0.27 | M21: 3.09 | N21: 43.0 % | P21: Lyöty | R21: 28.05. 1980 SiiPo - KiU 5-3 | Y21: 6. ottelu | AC21: 21 v 8 kk 21 pv | AG21: Lyöty | AH21: 2. 17.08. 1986 AA - SiiPo 3-5 | AL21: 1805 | AN21: 27 v 11 kk 10 pv
B22: Alempi loppusarja | E22: 10 | F22: 0 | G22: 8 | H22: 8 | I22: 43 | K22: 0.80 | L22: 0.80 | M22: 4.30 | N22: 59.7 % | P22: Tuotu | R22: 04.05. 1980 SiiPo - KaMa 6-2 | Y22: 1. ottelu | AC22: 21 v 7 kk 27 pv | AG22: Tuotu | AH22: 3. 20.08. 1986 SiiPo - Kiri 8-1 | AL22: 2480 | AN22: 27 v 11 kk 13 pv
B23: KAIKKI | E23: 224 | F23: 6 | G23: 102 | H23: 122 | I23: 916 | K23: 0.48 | L23: 0.54 | M23: 4.09 | N23: 50.9 % | P23: Kunnari | R23: 13.08. 1980 SiiPo - IiU 9-3 | Y23: 21. ottelu | AC23: 21 v 11 kk 6 pv | AG23: Kunnari
B25: Seurat | D25: SiiPo = Siilinjärven Ponnistus (1907) | L25: SiiPe = Siilinjärven Pesis (1987)
B27: RUNKOSARJA, KA / OTT | F27: IKÄ | G27: OTT | H27: LÖI | I27: TOI | J27: TEHO | K27: KL | M27: SIJOITUS | P27: OTT | Q27: LÖI | R27: TOI | S27: TEHO | U27: KL | W27: RUNKOSARJA, TASASATASET, ka. / peli
B28: 1980 | C28: 7. | D28: SiiPo | F28: 22 | G28: 22 | H28: =PRODUCT((F4+G4)/E4) -> 0.50 | I28: =PRODUCT(H4/E4) -> 0.50 | J28: =PRODUCT(F4+G4+H4)/E4 -> 1.00 | K28: =PRODUCT(I4/E4) -> 4.41 | M28: 1945 - 1980 | O28: 21 | P28: 614. | Q28: 575. | R28: 599. | S28: 605. | U28: 137. | W28: Ottelutilasto
B29: 1981 | C29: 7. | D29: SiiPo | F29: 23 | G29: 22 | H29: 0.86 | I29: 0.50 | J29: 1.36 | K29: 4.36 | M29: 1945 - 1981 | O29: 21 | P29: 456. | Q29: 382. | R29: 477. | S29: 432. | U29: 95. | W29: 200 | Y29: 84. 14.07. 1990 SiiPe - Tahko 14-3 | AG29: 31 v 10 kk 7 pv
B30: 1982 | C30: 7. | D30: SiiPo | F30: 24 | G30: 22 | H30: 0.36 | I30: 0.55 | J30: 0.91 | K30: 3.91 | M30: 1945 - 1982 | O30: 21 | P30: 367. | Q30: 344. | R30: 394. | S30: 382. | U30: 78.
B31: 1983 | C31: 8. | D31: SiiPo | F31: 25 | G31: 21 | H31: 0.29 | I31: 0.33 | J31: 0.62 | K31: 3.33 | M31: 1945 - 1983 | P31: 284. | Q31: 317. | R31: 369. | S31: 357. | U31: 73.
B32: 1984 | C32: 10. | D32: SiiPo | F32: 26 | G32: 22 | H32: 0.50 | I32: 0.77 | J32: 1.27 | K32: 3.95 | M32: 1945 - 1984 | P32: 234. | Q32: 281. | R32: 296. | S32: 284. | U32: 63.
B33: 1985 | F33: 27 | M33: 1945 - 1985 | P33: 243. | Q33: 287. | R33: 303. | S33: 294. | U33: 74.
B34: 1986 | C34: 2. | D34: SiiPo | F34: 28 | G34: 22 | H34: 0.50 | I34: 0.73 | J34: 1.23 | K34: 4.45 | M34: 1945 - 1986 | P34: 197. | Q34: 252. | R34: 244. | S34: 245. | U34: 62.
B35: 1987 | C35: 6. | D35: SiiPo | F35: 29 | G35: 22 | H35: 0.41 | I35: 0.55 | J35: 0.95 | K35: 4.45 | M35: 1945 - 1987 | P35: 149. | Q35: 221. | R35: 214. | S35: 226. | U35: 51.
B36: 1988 | C36: 10. | D36: SiiPe | F36: 30 | G36: 22 | H36: 0.45 | I36: 0.50 | J36: 0.95 | K36: 4.36 | M36: 1945 - 1988 | P36: 112. | Q36: 208. | R36: 193. | S36: 206. | U36: 45.
B37: 1989 | C37: 12. | D37: SiiPe | F37: 31 | G37: 22 | H37: 0.32 | I37: 0.50 | J37: 0.82 | K37: 4.05 | M37: 1945 - 1989 | P37: 85. | Q37: 199. | R37: 172. | S37: 189. | U37: 41.
B38: 1990 | C38: 8. | D38: SiiPe | F38: 32 | G38: 6 | H38: =PRODUCT((F14+G14)/E14) -> 0.50 | I38: =PRODUCT(H14/E14) -> 0.50 | J38: =PRODUCT(F14+G14+H14)/E14 -> 1.00 | K38: =PRODUCT(I14/E14) -> 3.67 | M38: 1945 - 1990 | P38: 83. | Q38: 196. | R38: 175. | S38: 191. | U38: 48.
B41: PLAY OFF, KA / OTT | F41: IKÄ | G41: OTT | H41: LÖI | I41: TOI | J41: TEHO | K41: KL | M41: SIJOITUS | P41: OTT | Q41: LÖI | R41: TOI | S41: TEHO | U41: KL | W41: PLAY OFF, TASASATASET, ka. / peli
B42: 1986 | C42: 2. | D42: SiiPo | F42: 28 | G42: 6 | H42: =PRODUCT((V10+W10)/U10) -> 0.67 | I42: =PRODUCT(X10/U10) -> 0.33 | J42: =PRODUCT(V10+W10+X10)/U10 -> 1.00 | K42: =PRODUCT(Y10/U10) -> 3.50 | M42: 1979 - 1986 | O42: 21 | P42: 90. | Q42: 78. | R42: 105. | S42: 99. | U42: 103.
B43: 1987 | C43: 6. | D43: SiiPo | F43: 29 | G43: 2 | H43: =PRODUCT((V11+W11)/U11) -> 0.50 | I43: =PRODUCT(X11/U11) -> 0.50 | J43: =PRODUCT(V11+W11+X11)/U11 -> 1.00 | K43: =PRODUCT(Y11/U11) -> 3.50 | M43: 1979 - 1987 | O43: 21 | P43: 91. | Q43: 79. | R43: 99. | S43: 93. | U43: 89.
B44: 1988 | C44: 10. | D44: SiiPe | F44: 30 | M44: 1979 - 1988 | O44: 21 | P44: 106. | Q44: 87. | R44: 108. | S44: 99. | U44: 102.
B45: 1989 | C45: 12. | D45: SiiPe | F45: 31 | M45: 1979 - 1989 | O45: 21 | P45: 120. | Q45: 100. | R45: 125. | S45: 114. | U45: 118.
B46: 1990 | C46: 8. | D46: SiiPe | F46: 32 | G46: 3 | H46: 0.00 | I46: 0.00 | J46: 0.00 | K46: 2.00 | M46: 1979 - 1990 | P46: 125. | Q46: 117. | R46: 140. | S46: 134. | U46: 126.

Sheet MYP
B1: Jyrki Korhonen | E1: 7.9.1958
B2: YKKÖSPESIS | E2: Runkosarja | L2: Runkosarja TOP-10 | Q2: Jatkosarjat | X2: SUOMENSARJA | AA2: Runkosarja | AH2: Runkosarja TOP-10 | AM2: Jatkosarjat
B3: Vuosi | C3: Sija | D3: Seura | E3: OTT | F3: KUN | G3: LÖI | H3: TOI | I3: KL | J3: KL-% | L3: LÖI | M3: TOI | N3: L+T | O3: KL | Q3: OTT | R3: KUN | S3: LÖI | T3: TOI | U3: KL | V3: KL-% | X3: Vuosi | Y3: Sija | Z3: Seura | AA3: OTT | AB3: KUN | AC3: LÖI | AD3: TOI | AE3: KL | AF3: KL-% | AH3: LÖI | AI3: TOI | AJ3: L+T | AK3: KL | AM3: OTT | AN3: KUN | AO3: LÖI | AP3: TOI | AQ3: KL | AR3: KL-%
B4: 1985 | C4: 1. | D4: SiiPo | E4: 22 | F4: 1 | G4: 9 | H4: 27
B5: YHTEENSÄ | E5: =SUM(E4:E4) -> 22 | F5: =SUM(F4:F4) -> 1 | G5: =SUM(G4:G4) -> 9 | H5: =SUM(H4:H4) -> 27 | I5: =SUM(I4:I4) -> 0 | J5: 0.0 % | K5: =SUM(K4:K4) -> 0 | Q5: =SUM(Q4:Q4) -> 0 | R5: =SUM(R4:R4) -> 0 | S5: =SUM(S4:S4) -> 0 | T5: =SUM(T4:T4) -> 0 | U5: =SUM(U4:U4) -> 0 | V5: 0.0 % | W5: =SUM(W4:W4) -> 0 | X5: YHTEENSÄ | AA5: =SUM(AA4:AA4) -> 0 | AB5: =SUM(AB4:AB4) -> 0 | AC5: =SUM(AC4:AC4) -> 0 | AD5: =SUM(AD4:AD4) -> 0 | AE5: =SUM(AE4:AE4) -> 0 | AF5: 0.0 % | AG5: =SUM(AG4:AG4) -> 0 | AM5: =SUM(AM4:AM4) -> 0 | AN5: =SUM(AN4:AN4) -> 0 | AO5: =SUM(AO4:AO4) -> 0 | AP5: =SUM(AP4:AP4) -> 0 | AQ5: =SUM(AQ4:AQ4) -> 0 | AR5: 0.0 % | AS5: =SUM(AS4:AS4) -> 0
B7: KAIKKI OTTELUT | E7: OTT | F7: KUN | G7: LÖI | H7: TOI | I7: KL | J7: KL-% | L7: ka/L | M7: ka/T | N7: ka/l+t | O7: ka/kl | R7: Seurat | T7: SiiPo = Siilinjärven Ponnistus (1907)
B8: SUPERPESIS | E8: 0 | F8: 0 | G8: 0 | H8: 0 | I8: 0 | J8: 0.0 % | K8: =PRODUCT(I8/J8) ->  | L8: 0.00 | M8: 0.00 | N8: 0.00 | O8: 0.00 | T8: SiiPe = Siilinjärven Pesis (1987)
B9: YKKÖSPESIS | E9: =PRODUCT(E5+Q5) -> 22 | F9: =PRODUCT(F5+R5) -> 1 | G9: =PRODUCT(G5+S5) -> 9 | H9: =PRODUCT(H5+T5) -> 27 | I9: =PRODUCT(I5+U5) -> 0 | J9: 0.0 % | K9: =PRODUCT(K5+W5) -> 0 | L9: =PRODUCT((F9+G9)/E9) -> 0.45 | M9: =PRODUCT(H9/E9) -> 1.23 | N9: =PRODUCT((F9+G9+H9)/E9) -> 1.68 | O9: =PRODUCT(I9/E9) -> 0.00
B10: SUOMENSARJA | E10: =PRODUCT(AA5+AM5) -> 0 | F10: =PRODUCT(AB5+AN5) -> 0 | G10: =PRODUCT(AC5+AO5) -> 0 | H10: =PRODUCT(AD5+AP5) -> 0 | I10: =PRODUCT(AE5+AQ5) -> 0 | J10: 0.0 % | K10: =PRODUCT(AG5+AS5) -> 0 | L10: 0.00 | M10: 0.00 | N10: 0.00 | O10: 0.00
B11: YHTEENSÄ | E11: =SUM(E8:E10) -> 22 | F11: =SUM(F8:F10) -> 1 | G11: 9 | H11: 27 | I11: 0 | J11: 0.0 % | K11: =SUM(K8:K10) ->  | L11: =PRODUCT((F11+G11)/E11) -> 0.45 | M11: =PRODUCT(H11/E11) -> 1.23 | N11: =PRODUCT((F11+G11+H11)/E11) -> 1.68 | O11: =PRODUCT(I11/E11) -> 0.00

Sheet Arvo-ottelut
B1: ITÄ - LÄNSI - KORTTI
B2: Jyrki Korhonen | C2: 7.9.1958
B3: MIEHET | C3: Itä - Länsi, tulos | D3: Joukkue | E3: Seura | G3: V | H3: T | I3: H | J3: Up. | K3: Lj. | L3: Palk. | M3: O | N3: K | O3: L | P3: T | Q3: KL | R3: 1 | S3: 2 | T3: 3 | U3: k | V3: KL-% | W3: Pelinjohtaja | X3: Yleisöä
B4: 09.08. 1987 Stadion, Helsinki | C4: 7-5 | D4: Itä | E4: SiiPo | G4: 1 | K4: jok | M4: 1 | Q4: 1/1 | S4: 1/1 | V4: 100.0 % | W4: Vesa Lipsanen | X4: 7029
B5: Ikä ensimmäisessä ottelussa | C5: 28 v 11 kk 2 pv
B7: LIITTO - LEHDISTÖ - KORTTI
B8: MIEHET | C8: Tulos | D8: Joukkue | E8: Seura | G8: V | H8: T | I8: H | J8: Up. | K8: Lj. | M8: O | N8: K | O8: L | P8: T | Q8: KL | R8: 1 | S8: 2 | T8: 3 | U8: k | V8: KL-% | W8: Pelinjohtaja | X8: Yleisöä
B9: 05.06. 1987 Jyväskylä | C9: 21-9 | D9: Liitto | E9: SiiPo | G9: 1 | K9: jok | M9: 1 | Q9: 2/3 | S9: 1/1 | T9: 1/1 | U9: 0/1 | V9: 66.7 % | W9: Stig Tainio | X9: 1620
B10: Ikä ensimmäisessä ottelussa | C10: 28 v 8 kk 29 pv

Sheet Kärkilyönnit
B1: KÄRKILYÖNNIT RUNKOSARJASSA | V1: VUOSITTAISET SIJOITUKSET TOP - 30
G2: 0 > 1 | J2: 1 > 2 | M2: 2 > 3 | P2: 3 > k | S2: Yhteensä
B3: Vuosi | C3: Sija | D3: Seura | E3: OTT | F3: KL | G3: YHT | H3: % | I3: KL | J3: YHT | K3: % | L3: KL | M3: YHT | N3: % | O3: KL | P3: YHT | Q3: % | R3: KL | S3: YHT | T3: % | V3: Vuosi | W3: Sija | X3: Seura | Y3: 0 > 1 | Z3: 1 > 2 | AA3: 2 > 3 | AB3: 3 > k | AC3: KL
B4: 1980 | C4: 7. | D4: SiiPo | E4: 22 | F4: 38 | G4: =PRODUCT(F4/H4) -> 66 | H4: 57.4 % | I4: 23 | J4: =PRODUCT(I4/K4) -> 54 | K4: 42.4 % | L4: 25 | M4: =PRODUCT(L4/N4) -> 56 | N4: 45.0 % | O4: 11 | P4: =PRODUCT(O4/Q4) -> 88 | Q4: 12.5 % | R4: 97 | S4: =PRODUCT(G4+J4+M4+P4) -> 264 | T4: 47.2 % | V4: 1980 | W4: 7. | X4: SiiPo | Y4: 17.
B5: 1981 | C5: 7. | D5: SiiPo | E5: 22 | F5: 31 | G5: 50 | H5: =PRODUCT(F5/G5) -> 62.0 % | I5: 19 | J5: 45 | K5: =PRODUCT(I5/J5) -> 42.2 % | L5: 27 | M5: 51 | N5: =PRODUCT(L5/M5) -> 52.9 % | O5: 19 | P5: 41 | Q5: =PRODUCT(O5/P5) -> 46.3 % | R5: 96 | S5: 187 | T5: =PRODUCT(R5/S5) -> 51.3 % | V5: 1981 | W5: 7. | X5: SiiPo | Y5: 27. | AB5: 23.
B6: 1982 | C6: 7. | D6: SiiPo | E6: 22 | F6: 25 | G6: 44 | H6: =PRODUCT(F6/G6) -> 56.8 % | I6: 28 | J6: 49 | K6: =PRODUCT(I6/J6) -> 57.1 % | L6: 25 | M6: 45 | N6: =PRODUCT(L6/M6) -> 55.6 % | O6: 8 | P6: 24 | Q6: =PRODUCT(O6/P6) -> 33.3 % | R6: 86 | S6: 162 | T6: =PRODUCT(R6/S6) -> 53.1 % | V6: 1982 | W6: 7. | X6: SiiPo | Z6: 27.
B7: 1983 | C7: 10. | D7: SiiPo | E7: 21 | F7: 18 | G7: 36 | H7: =PRODUCT(F7/G7) -> 50.0 % | I7: 26 | J7: 48 | K7: =PRODUCT(I7/J7) -> 54.2 % | L7: 20 | M7: 39 | N7: =PRODUCT(L7/M7) -> 51.3 % | O7: 6 | P7: 26 | Q7: =PRODUCT(O7/P7) -> 23.1 % | R7: 70 | S7: 149 | T7: =PRODUCT(R7/S7) -> 47.0 % | V7: 1983 | W7: 10. | X7: SiiPo
B8: 1984 | C8: 8. | D8: SiiPo | E8: 22 | F8: 21 | G8: 39 | H8: =PRODUCT(F8/G8) -> 53.8 % | I8: 23 | J8: 48 | K8: =PRODUCT(I8/J8) -> 47.9 % | L8: 32 | M8: 53 | N8: =PRODUCT(L8/M8) -> 60.4 % | O8: 11 | P8: 32 | Q8: =PRODUCT(O8/P8) -> 34.4 % | R8: 87 | S8: 172 | T8: 50.6 % | V8: 1984 | W8: 8. | X8: SiiPo | AA8: 25.
B9: 1985 | V9: 1985
B10: 1986 | C10: 3. | D10: SiiPo | E10: 22 | F10: 19 | G10: 32 | H10: =PRODUCT(F10/G10) -> 59.4 % | I10: 38 | J10: 57 | K10: =PRODUCT(I10/J10) -> 66.7 % | L10: 30 | M10: 49 | N10: =PRODUCT(L10/M10) -> 61.2 % | O10: 11 | P10: 26 | Q10: =PRODUCT(O10/P10) -> 42.3 % | R10: 98 | S10: 164 | T10: 59.8 % | V10: 1986 | W10: 3. | X10: SiiPo | Z10: 18.
B11: 1987 | C11: 4. | D11: SiiPo | E11: 22 | F11: 28 | I11: 35 | L11: 26 | O11: 9 | R11: =PRODUCT(F11+I11+L11+O11) -> 98 | S11: 174 | T11: =PRODUCT(R11/S11) -> 56.3 % | V11: 1987 | W11: 4. | X11: SiiPo | Z11: 22.
B12: 1988 | C12: 10. | D12: SiiPe | E12: 22 | F12: 15 | G12: 33 | H12: =PRODUCT(F12/G12) -> 45.5 % | I12: 38 | J12: 62 | K12: =PRODUCT(I12/J12) -> 61.3 % | L12: 33 | M12: 52 | N12: =PRODUCT(L12/M12) -> 63.5 % | O12: 10 | P12: 35 | Q12: =PRODUCT(O12/P12) -> 28.6 % | R12: =PRODUCT(F12+I12+L12+O12) -> 96 | S12: 182 | T12: 52.8 % | V12: 1988 | W12: 10. | X12: SiiPe | Z12: 21. | AA12: 24.
B13: 1989 | C13: 9. | D13: SiiPe | E13: 22 | F13: 18 | I13: 37 | L13: 27 | O13: 7 | R13: =PRODUCT(F13+I13+L13+O13) -> 89 | S13: 152 | T13: =PRODUCT(R13/S13) -> 58.6 % | V13: 1989 | W13: 9. | X13: SiiPe | Z13: 17.
B14: 1990 | C14: 7. | D14: SiiPe | E14: 6 | F14: 5 | G14: 11 | H14: =PRODUCT(F14/G14) -> 45.5 % | I14: 6 | J14: 13 | K14: =PRODUCT(I14/J14) -> 46.2 % | L14: 8 | M14: 10 | N14: =PRODUCT(L14/M14) -> 80.0 % | O14: 3 | P14: 7 | Q14: =PRODUCT(O14/P14) -> 42.9 % | R14: 22 | S14: 41 | T14: =PRODUCT(R14/S14) -> 53.7 % | V14: 1990 | W14: 7. | X14: SiiPe
B15: Yhteensä | E15: =SUM(E4:E14) -> 203 | F15: =SUM(F4:F14) -> 218 | G15: =SUM(G4:G14) -> 311.1481481 | H15: =PRODUCT(F15/G15) -> 70.1 % | I15: =SUM(I4:I14) -> 273 | J15: =SUM(J4:J14) -> 376.2142857 | K15: =PRODUCT(I15/J15) -> 72.6 % | L15: =SUM(L4:L14) -> 253 | M15: =SUM(M4:M14) -> 354.5555556 | N15: =PRODUCT(L15/M15) -> 71.4 % | O15: =SUM(O4:O14) -> 95 | P15: =SUM(P4:P14) -> 279 | Q15: =PRODUCT(O15/P15) -> 34.1 % | R15: =SUM(R4:R14) -> 839 | S15: =SUM(S4:S14) -> 1646.917989 | T15: =PRODUCT(R15/S15) -> 50.9 %
B17: KÄRKILYÖNNIT YLEMMISSÄ PUDOTUSPELEISSÄ | V17: VUOSITTAISET SIJOITUKSET TOP - 30
G18: 0 > 1 | J18: 1 > 2 | M18: 2 > 3 | P18: 3 > k | S18: Yhteensä
B19: Vuosi | C19: Sija | D19: Seura | E19: OTT | F19: KL | G19: YHT | H19: % | I19: KL | J19: YHT | K19: % | L19: KL | M19: YHT | N19: % | O19: KL | P19: YHT | Q19: % | R19: KL | S19: YHT | T19: % | V19: Vuosi | W19: Sija | X19: Seura | Y19: 0 > 1 | Z19: 1 > 2 | AA19: 2 > 3 | AB19: 3 > k | AC19: KL
B20: 1980 | C20: 7. | D20: SiiPo | V20: 1980 | W20: 7. | X20: SiiPo
B21: 1981 | C21: 7. | D21: SiiPo | V21: 1981 | W21: 7. | X21: SiiPo
B22: 1982 | C22: 7. | D22: SiiPo | V22: 1982 | W22: 7. | X22: SiiPo
B23: 1983 | C23: 8. | D23: SiiPo | V23: 1983 | W23: 8. | X23: SiiPo
B24: 1984 | C24: 10. | D24: SiiPo | V24: 1984 | W24: 10. | X24: SiiPo
B25: 1985 | V25: 1985
B26: 1986 | C26: 2. | D26: SiiPo | E26: 6 | F26: 3 | G26: 6 | H26: 50.0 % | I26: 6 | J26: 9 | K26: 66.7 % | L26: 8 | M26: 17 | N26: 47.1 % | O26: 4 | P26: 15 | Q26: 26.7 % | R26: 21 | S26: 47 | T26: 44.7 % | V26: 1986 | W26: 2. | X26: SiiPo | Z26: 25. | AA26: 13. | AB26: 15. | AC26: 28.
B27: 1987 | C27: 6. | D27: SiiPo | E27: 2 | F27: 1 | G27: 4 | H27: 25.0 % | I27: 2 | J27: 4 | K27: 50.0 % | L27: 3 | M27: 4 | N27: 75.0 % | O27: 1 | P27: 4 | Q27: 25.0 % | R27: 7 | S27: 16 | T27: 43.8 % | V27: 1987 | W27: 6. | X27: SiiPo
B28: 1988 | C28: 10. | D28: SiiPe | V28: 1988 | W28: 10. | X28: SiiPe
B29: 1989 | C29: 12. | D29: SiiPe | V29: 1989 | W29: 12. | X29: SiiPe
B30: 1990 | C30: 8. | D30: SiiPe | E30: 3 | F30: 2 | G30: 6 | H30: 33.3 % | I30: 3 | J30: 7 | K30: 42.9 % | L30: 1 | M30: 1 | N30: 100.0 % | O30: 0 | P30: 2 | Q30: 0.0 % | R30: 6 | S30: 16 | T30: 37.5 % | V30: 1990 | W30: 8. | X30: SiiPe
B31: Yhteensä | E31: =SUM(E18:E30) -> 11 | F31: =SUM(F20:F30) -> 6 | G31: =SUM(G20:G30) -> 16 | H31: =PRODUCT(F31/G31) -> 37.5 % | I31: =SUM(I20:I30) -> 11 | J31: =SUM(J20:J30) -> 20 | K31: =PRODUCT(I31/J31) -> 55.0 % | L31: =SUM(L20:L30) -> 12 | M31: =SUM(M20:M30) -> 22 | N31: =PRODUCT(L31/M31) -> 54.5 % | O31: =SUM(O20:O30) -> 5 | P31: =SUM(P20:P30) -> 21 | Q31: =PRODUCT(O31/P31) -> 23.8 % | R31: =SUM(R20:R30) -> 34 | S31: =SUM(S20:S30) -> 79 | T31: =PRODUCT(R31/S31) -> 43.0 %
B33: KÄRKILYÖNNIT
G34: 0 > 1 | J34: 1 > 2 | M34: 2 > 3 | P34: 3 > k | S34: Yhteensä
E35: OTT | F35: KL | G35: YHT | H35: % | I35: KL | J35: YHT | K35: % | L35: KL | M35: YHT | N35: % | O35: KL | P35: YHT | Q35: % | R35: KL | S35: YHT | T35: %
B36: RUNKOSARJA | E36: =PRODUCT(E15) -> 203 | F36: =PRODUCT(F15) -> 218 | G36: =PRODUCT(G15) -> 311.1481481 | H36: =PRODUCT(H15) -> 70.1 % | I36: =PRODUCT(I15) -> 273 | J36: =PRODUCT(J15) -> 376.2142857 | K36: =PRODUCT(K15) -> 72.6 % | L36: =PRODUCT(L15) -> 253 | M36: =PRODUCT(M15) -> 354.5555556 | N36: =PRODUCT(N15) -> 71.4 % | O36: =PRODUCT(O15) -> 95 | P36: =PRODUCT(P15) -> 279 | Q36: =PRODUCT(Q15) -> 34.1 % | R36: =PRODUCT(R15) -> 839 | S36: =PRODUCT(S15) -> 1646.917989 | T36: =PRODUCT(T15) -> 50.9 %
B37: PLAY OFF | E37: =PRODUCT(E31) -> 11 | F37: =PRODUCT(F31) -> 6 | G37: 16 | H37: 37.5 % | I37: 11 | J37: 20 | K37: 55.0 % | L37: 12 | M37: 22 | N37: 54.5 % | O37: 5 | P37: 21 | Q37: 23.8 % | R37: 34 | S37: 79 | T37: 43.0 %
